Workbook

Sheet Sheet1
A2: Item | B2: Unit | C2: Rs/unit/month | D2: Rs/month | E2: Rs/year | G2: Salaries | H2: Food | I2: Health | J2: Building | K2: Training++ | L2: Others | N2: 2013 amount | O2: Increase in 2014
A3: Mach Awrah
A4: Salary of Creche Teachers a | B4: 5 | C4: 5000 | D4: =C4*B4 -> 25000 | E4: =D4*12 -> 300000 | G4: =E4 -> 300000 | N4: 270000 | O4: =E4-N4 -> 30000
A5: Salary of Cook | B5: 1 | C5: 5000 | D5: =C5*B5 -> 5000 | E5: =D5*12 -> 60000 | G5: =E5 -> 60000 | N5: 72000 | O5: =E5-N5 -> -12000
A6: Food and Refreshment (Rs 18 x 25 days) - earlier Rs 14 …) | B6: 55 | C6: =18*25 -> 450 | D6: =C6*B6 -> 24750 | E6: =D6*9 -> 222750 | H6: =E6 -> 222750 | N6: 247500 | O6: -24750
A7: Medicines | B7: 50 | C7: 10 | D7: =C7*B7 -> 500 | E7: =D7*12 -> 6000 | I7: =E7 -> 6000 | N7: 0 | O7: 6000
A8: Total - Recurring | D8: =SUM(D4:D7) -> 55250 | E8: =SUM(E4:E7) -> 588750 | N8: 589500 | O8: -750
A9: Publication of Learning Materials | E9: 0 | N9: 20000 | O9: -20000
A10: Library Extension (Purchase of new books, films, Book-shelf ) | E10: 45000 | N10: 0 | O10: 45000 | P10: 1 time
A11: Building maintenance (Roof Thatch Repairing) | E11: 25000 | J11: =E11 -> 25000 | N11: 0 | O11: 25000 | P11: 1 time
A12: Hostel Charge for the out going students | B12: 4 | C12: 3000 | D12: 12000 | E12: 144000 | L12: 144000 | N12: 0 | O12: 144000
A13: Total- Moch Awarah | E13: 807000 | N13: 609500 | O13: 197500
A14: Personnel | O14: 0
A15: Project coordinators | B15: 1 | C15: 13000 | D15: =C15*B15 -> 13000 | E15: =D15*12 -> 156000 | G15: =E15 -> 156000 | N15: 150000 | O15: 6000
A16: cost for the volunteers and visiting trainers | B16: 4 | C16: 2000 | D16: =C16*B16 -> 8000 | E16: =D16*12 -> 96000 | K16: =E16 -> 96000 | N16: 48000 | O16: 48000
A17: Accountant | B17: 1 | C17: 1500 | D17: =C17*B17 -> 1500 | E17: =D17*12 -> 18000 | G17: =E17 -> 18000 | N17: 18000 | O17: 0
A18: ECE Expense (not on budget anymore: Rs 148,950) | D18: =C18*B18 -> 0 | E18: =D18*12 -> 0 | G18: =E18 -> 0 | N18: 0 | O18: 0
A19: Total - Personnel | D19: =SUM(D14:D17) -> 22500 | E19: =SUM(E14:E18) -> 270000 | N19: 216000 | O19: 54000
O20: 0
A21: Administrative | O21: 0
A22: Telephone, internet & postage | D22: 1000 | E22: =D22*12 -> 12000 | L22: =E22 -> 12000 | N22: 12000 | O22: 0
A23: Printing & stationary | D23: 500 | E23: =D23*12 -> 6000 | L23: =E23 -> 6000 | N23: 6000 | O23: 0
A24: Printout & photocopying | D24: 500 | E24: =D24*12 -> 6000 | L24: =E24 -> 6000 | N24: 6000 | O24: 0
A25: Travel | D25: 2000 | E25: =D25*12 -> 24000 | L25: =E25 -> 24000 | N25: 12000 | O25: 12000
A26: Bike maintenance & fuel | D26: 600 | E26: =D26*12 -> 7200 | L26: =E26 -> 7200 | N26: 3600 | O26: 3600
A27: Total - Admin | D27: =SUM(D22:D26) -> 4600 | E27: =SUM(E22:E26) -> 55200 | N27: 39600 | O27: 15600
O28: 0
A29: Current Loans - Purpose of loans | E29: 85000 | O29: 85000 | P29: 1 time
O30: 0
A31: Grand Total | E31: =1132200+85000 -> 1217200 | G31: =SUM(G4:G27) -> 534000 | H31: 222750 | I31: 6000 | J31: 25000 | K31: 96000 | L31: 199200 | N31: 865100
D32: W/o Loan | E32: =E31-E29 -> 1132200 | M32: Funded 2013 | N32: 828483
D33: Lib, Build | E33: =E32-E11-E10 -> 1062200 | M33: 2013 F * 1.25 | N33: =828483*1.25 -> 1035603.75
E34: =E33-O12 -> 918200 | M34: 1 time | N34: =O10+O11+O29 -> 155000
A35: Debt sources: Salary/Honorarium heads of Teachers (Rs. 1,05,000), Project Coordinator (Rs. 68,000) and Food & Refreshment head (Rs. 1,01,279). | N35: =N33-E34 -> 117403.75
A38: Total without hostel charge | C38: =E34 -> 918200
A39: Total one-time | C39: =N34 -> 155000
A40: Capped maximum budget allowed | C40: =N33 -> 1035603.75

Sheet Sheet2

Sheet Sheet3
